fUSD/lending_fUSD_20251023
["ID","MTS","AMOUNT","RATE_DAILY","PERIOD"]
[392210586,1761257447493,-500.0,0.00041096,30]
[392210587,1761257447503,-500.0,0.00041096,30]
[392210588,1761257447513,-500.0,0.00041096,30]
[392210589,1761257447526,-500.0,0.00041096,30]
[392210590,1761257447536,-500.0,0.00041096,30]
[392210591,1761257447545,-500.0,0.00041096,30]
[392210592,1761257447554,-500.0,0.00041096,30]
[392210593,1761257447566,-500.0,0.00041096,30]
[392210594,1761257447575,-500.0,0.00041096,30]
[392210595,1761257447584,-500.0,0.00041096,30]
[392210596,1761257447595,-500.0,0.00041096,30]
[392210597,1761257447605,-500.0,0.00041096,30]
[392210598,1761257447614,-500.0,0.00041096,30]
[392210599,1761257447624,-500.0,0.00041096,30]
[392210600,1761257447634,-500.0,0.00041096,30]
[392210601,1761257447643,-500.0,0.00041096,30]
[392210602,1761257447653,-500.0,0.00041096,30]
[392210603,1761257447663,-500.0,0.00041096,30]
[392210604,1761257447672,-500.0,0.00041096,30]
[392210605,1761257447682,-500.0,0.00041096,30]
[392210606,1761257447692,-500.0,0.00041096,30]
[392210607,1761257447701,-500.0,0.00041096,30]
[392210608,1761257447711,-500.0,0.00041096,30]
[392210609,1761257447720,-500.0,0.00041096,30]
[392210610,1761257447729,-500.0,0.00041096,30]
[392210611,1761257447739,-500.0,0.00041096,30]
[392210612,1761257447748,-540.0,0.00041096,30]
[392210613,1761257447758,-221.988938,0.00041096,120]
[392210614,1761257447768,-221.988938,0.00041096,120]
[392210615,1761257447777,-221.988938,0.00041096,120]
[392210616,1761257447787,-221.988938,0.00041096,120]
[392210617,1761257447796,-649.0,0.00041096,120]
[392210618,1761257447805,-720.96274135,0.000411,120]
[392210619,1761257447815,-720.96274135,0.000411,120]
[392210620,1761257447824,-720.96274135,0.000411,120]
[392210621,1761257447833,-720.96274135,0.000411,120]
[392210622,1761257447843,-720.96274135,0.000411,120]
[392210623,1761257447852,-720.96274135,0.000411,120]
[392210624,1761257447862,-720.96274135,0.000411,120]
[392210625,1761257447872,-720.96274135,0.000411,120]
[392210626,1761257447881,-720.96274135,0.000411,120]
[392210627,1761257447892,-720.96274135,0.000411,120]
[392210628,1761257447901,-720.96274135,0.000411,120]
[392210629,1761257447911,-720.96274135,0.000411,120]
[392210630,1761257447921,-720.96274135,0.000411,120]
[392210631,1761257447932,-476.23156132,0.000411,30]
[392210632,1761257447941,-720.96274135,0.00041111,120]
[392210633,1761257447951,-15692.9169309,0.00041141,3]
[392210634,1761257447962,-649.0,0.00041151,120]
[392210635,1761257447971,-2420.96452926,0.00041166,15]
[392210636,1761257447981,-150.0,0.0004118,30]
[392210637,1761257447991,-649.0,0.00041206,120]
[392210638,1761257448000,-649.0,0.0004126,120]
[392210639,1761257448010,-15196.8347643,0.00041268,3]
[392210640,1761257448019,-15692.9169309,0.00041268,3]
[392210641,1761257448029,-1000.0,0.00041273,10]
[392210642,1761257448038,-15196.8347643,0.00041276,3]
[392210643,1761257448047,-151.0,0.00041278,120]
[392210644,1761257448057,-151.0,0.00041278,120]
[392210645,1761257448066,-151.0,0.00041278,120]
[392210646,1761257448076,-151.0,0.00041278,120]
[392210647,1761257448085,-151.0,0.00041278,120]
[392210648,1761257448094,-151.0,0.00041278,120]
[392210649,1761257448104,-151.0,0.00041278,120]
[392210650,1761257448113,-151.0,0.00041278,120]
[392210651,1761257448123,-151.0,0.00041278,120]
[392210652,1761257448132,-151.0,0.00041278,120]
[392210653,1761257448142,-151.0,0.00041278,120]
[392210654,1761257448152,-151.0,0.00041278,120]
[392210655,1761257448162,-162.198999,0.00041278,120]
[392210656,1761257448171,-156.011922,0.00041278,120]
[392210657,1761257448182,-151.0,0.00041278,120]
[392210658,1761257448192,-155.281779,0.00041278,120]
[392210659,1761257448202,-151.396814,0.00041278,120]
[392210660,1761257448212,-759.611084,0.00041278,120]
[392210661,1761257448221,-759.611084,0.00041278,120]
[392210662,1761257448231,-759.611084,0.00041278,120]
[392210663,1761257448240,-759.611084,0.00041278,120]
[392210664,1761257448249,-995.21379,0.00041278,30]
[392210665,1761257448259,-995.21379,0.00041278,30]
[392210666,1761257448268,-995.21379,0.00041278,30]
[392210667,1761257448279,-995.21379,0.00041278,30]
[392210668,1761257448289,-156.225103,0.00041278,60]
[392210669,1761257448298,-151.0,0.00041278,120]
[392210670,1761257448308,-151.0,0.00041278,120]
[392210671,1761257448318,-151.0,0.00041278,120]
[392210672,1761257448327,-151.0,0.00041278,120]
[392210673,1761257448338,-151.0,0.00041278,120]
[392210674,1761257448347,-151.0,0.00041278,120]
[392210675,1761257448357,-151.0,0.00041278,120]
[392210676,1761257448366,-16278.87244647,0.00041278,15]
[392210677,1761257448376,-15692.9169309,0.00041286,3]
[392210678,1761257448385,-649.0,0.00041315,120]
[392210679,1761257448394,-15196.8347643,0.00041338,3]
[392210680,1761257448404,-200.0,0.00041342,2]
[392210681,1761257448413,-500.01,0.0004137,120]
[392210682,1761257448422,-649.0,0.0004137,120]
[392210683,1761257448431,-15692.9169309,0.00041422,3]
[392210684,1761257448440,-649.0,0.00041425,120]
[392210685,1761257448451,-15196.8347643,0.00041442,3]
[392210686,1761257448460,-1000.0,0.00041452,120]
[392210687,1761257448470,-1000.0,0.00041452,120]
[392210688,1761257448480,-1000.0,0.00041452,120]
[392210689,1761257448490,-1000.0,0.00041452,120]
[392210690,1761257448499,-1000.0,0.00041452,120]
[392210691,1761257448509,-1000.0,0.00041452,120]
[392210692,1761257448523,-1000.0,0.00041452,120]
[392210693,1761257448532,-1000.0,0.00041452,120]
[392210694,1761257448542,-1000.0,0.00041452,120]
[392210695,1761257448552,-1000.0,0.00041452,120]
[392210696,1761257448562,-1000.0,0.00041452,120]
[392210697,1761257448571,-1000.0,0.00041452,120]
[392210698,1761257448581,-1000.0,0.00041452,120]
[392210699,1761257448591,-1000.0,0.00041452,120]
[392210700,1761257448600,-1000.0,0.00041452,120]
[392210701,1761257448610,-1000.0,0.00041452,120]
[392210702,1761257448620,-1000.0,0.00041452,120]
[392210703,1761257448629,-1000.0,0.00041452,120]
[392210704,1761257448639,-935.24500297,0.00041452,120]
[392210705,1761257448649,-649.0,0.0004148,120]
[392210706,1761257448658,-168.47,0.00041489,30]
[392210707,1761257448668,-15692.9169309,0.00041514,3]
[392210708,1761257448678,-649.0,0.00041534,120]
[392210709,1761257448688,-720.96274135,0.00041548,120]
[392210710,1761257448698,-151.0,0.00041589,120]
[392210711,1761257448707,-200.48304,0.00041589,120]
[392210712,1761257448716,-200.48304,0.00041589,120]
[392210713,1761257448727,-200.48304,0.00041589,120]
[392210714,1761257448736,-200.48304,0.00041589,120]
[392210715,1761257448745,-151.0,0.00041589,120]
[392210716,1761257448755,-221.988938,0.00041589,120]
[392210717,1761257448765,-221.988938,0.00041589,120]
[392210718,1761257448774,-221.988938,0.00041589,120]
[392210719,1761257448784,-221.988938,0.00041589,120]
[392210720,1761257448793,-151.0,0.00041589,120]
[392210721,1761257448802,-547.371462,0.00041589,120]
[392210722,1761257448811,-547.371462,0.00041589,120]
[392210723,1761257448821,-151.0,0.00041589,120]
[392210724,1761257448830,-547.371462,0.00041589,120]
[392210725,1761257448839,-547.371462,0.00041589,120]
[392210726,1761257448849,-151.0,0.00041589,120]
[392210727,1761257448858,-151.0,0.00041589,120]
[392210728,1761257448867,-151.0,0.00041589,120]
[392210729,1761257448876,-151.0,0.00041589,120]
[392210730,1761257448886,-649.0,0.00041589,120]
[392210731,1761257448895,-766.05454374,0.00041614,28]
[392210732,1761257448905,-301.42904761,0.00041621,10]
[392210733,1761257448914,-500.69636851,0.00041621,10]
[392210734,1761257448924,-15196.8347643,0.00041634,3]
[392210735,1761257448933,-649.0,0.00041644,120]
[392210736,1761257448943,-649.0,0.00041699,120]
[392210737,1761257448953,-150.0,0.00041728,30]
[392210738,1761257448963,-150.0,0.00041728,30]
[392210739,1761257448973,-649.0,0.00041754,120]
[392210740,1761257448982,-300.0,0.00041765,30]
[392210741,1761257448992,-300.0,0.00041765,30]
[392210742,1761257449001,-150.0,0.00041765,30]
[392210743,1761257449012,-1408.0,0.000418,7]
[392210744,1761257449021,-2420.96452926,0.00041808,15]
[392210745,1761257449031,-649.0,0.00041808,120]
[392210746,1761257449040,-572.0,0.00041829,2]
[392210747,1761257449049,-151.0,0.00041839,120]
[392210748,1761257449060,-176.271543,0.00041839,120]
[392210749,1761257449070,-151.0,0.00041839,120]
[392210750,1761257449079,-159.356829,0.00041839,120]
[392210751,1761257449089,-1639.156,0.00041848,2]
[392210752,1761257449099,-1314.711,0.00041848,2]
[392210753,1761257449108,-679.349,0.00041848,2]
[392210754,1761257449118,-1269.0,0.00041848,2]
[392210755,1761257449127,-817.0,0.00041848,2]
[392210756,1761257449137,-649.0,0.00041863,120]
[392210757,1761257449148,-15196.8347643,0.00041868,3]
[392210758,1761257449157,-373.07297731,0.00041886,2]
[392210759,1761257449166,-320.74051982,0.00041886,2]
[392210760,1761257449175,-215.0738,0.00041888,2]
[392210761,1761257449185,-775.47832561,0.00041888,2]
[392210762,1761257449195,-200.0,0.0004189,2]
[392210763,1761257449204,-2200.0,0.000419,15]
[392210764,1761257449214,-649.0,0.00041918,120]
[392210765,1761257449223,-649.0,0.00041973,120]
[392210766,1761257449233,-15196.8347643,0.0004198,3]
[392210767,1761257449243,-720.96274135,0.00041986,120]
[392210768,1761257449253,-151.0,0.0004199,120]
[392210769,1761257449262,-151.0,0.0004199,120]
[392210770,1761257449272,-151.0,0.0004199,120]
[392210771,1761257449370,-151.0,0.0004199,120]
[392210772,1761257449380,-151.0,0.0004199,120]
[392210773,1761257449389,-151.0,0.0004199,120]
[392210774,1761257449399,-15196.8347643,0.0004199,3]
[392210775,1761257449408,-731.7038828,0.00041998,2]
[392210776,1761257449417,-21728.76461428,0.00042,120]
[392210777,1761257449427,-151.0,0.00042,120]
[392210778,1761257449435,-476.23156132,0.00042,10]
[392210779,1761257449443,-151.0,0.00042,120]
[392210780,1761257449452,-151.0,0.00042,120]
[392210781,1761257449461,-151.0,0.00042,120]
[392210782,1761257449470,-151.0,0.00042,120]
[392210783,1761257449480,-151.0,0.00042,120]
[392210784,1761257449489,-151.0,0.00042,120]
[392210785,1761257449499,-151.0,0.00042,120]
[392210786,1761257449508,-151.0,0.00042,120]
[392210787,1761257449521,-171.641704,0.00042,120]
[392210788,1761257449530,-151.0,0.00042,120]
[392210789,1761257449539,-151.0,0.00042,120]
[392210790,1761257449549,-151.0,0.00042,120]
[392210791,1761257449559,-151.0,0.00042,120]
[392210792,1761257449568,-151.0,0.00042,120]
[392210793,1761257449578,-475.46,0.00042025,30]
[392210794,1761257449588,-696.27,0.00042025,30]
[392210795,1761257449598,-696.27,0.00042025,30]
[392210796,1761257449607,-475.46,0.00042025,30]
[392210797,1761257449616,-696.27,0.00042025,30]
[392210798,1761257449625,-475.46,0.00042025,30]
[392210799,1761257449635,-475.46,0.00042025,30]
[392210800,1761257449644,-696.27,0.00042025,30]
[392210801,1761257449653,-475.46,0.00042025,30]
[392210802,1761257449663,-696.27,0.00042025,30]
[392210803,1761257449672,-475.46,0.00042025,30]
[392210804,1761257449682,-1012.56,0.00042025,30]
[392210805,1761257449691,-475.46,0.00042025,30]
[392210806,1761257449701,-256.33,0.00042025,30]
[392210807,1761257449711,-649.0,0.00042028,120]
[392210808,1761257449720,-1008.7,0.00042034,2]
[392210809,1761257449730,-15196.8347643,0.00042049,3]
[392210810,1761257449739,-5000.0,0.00042059,2]
[392210811,1761257449748,-15196.8347643,0.00042077,3]
[392210812,1761257449757,-649.0,0.00042082,120]
[392210813,1761257449767,-5000.0,0.00042086,2]
[392210814,1761257449775,-759.611084,0.00042097,120]
[392210815,1761257449785,-759.611084,0.00042097,120]
[392210816,1761257449794,-759.611084,0.00042097,120]
[392210817,1761257449803,-759.611084,0.00042097,120]
[392210818,1761257449812,-995.21379,0.00042097,30]
[392210819,1761257449822,-995.21379,0.00042097,30]
[392210820,1761257449831,-995.21379,0.00042097,30]
[392210821,1761257449840,-995.21379,0.00042097,30]
[392210822,1761257449849,-151.0,0.00042097,120]
[392210823,1761257449858,-151.0,0.00042097,120]
[392210824,1761257449868,-151.0,0.00042097,120]
[392210825,1761257449877,-151.0,0.00042097,120]
[392210826,1761257449886,-151.0,0.00042097,120]
[392210827,1761257449895,-16278.87244647,0.00042097,15]
[392210828,1761257449905,-301.0,0.000421,30]
[392210829,1761257449915,-2549.0,0.00042109,2]
[392210830,1761257449925,-6537.0,0.00042109,2]
[392210831,1761257449934,-3486.0,0.00042109,2]
[392210832,1761257449944,-6454.0,0.00042109,2]
[392210833,1761257449953,-557.0,0.00042109,2]
[392210834,1761257449963,-649.0,0.00042137,120]
[392210835,1761257449972,-3082.0,0.00042149,120]
[392210836,1761257449981,-2500.0,0.00042175,2]
[392210837,1761257449991,-15196.8347643,0.00042175,3]
[392210838,1761257450000,-151.0,0.00042185,120]
[392210839,1761257450009,-151.0,0.00042185,120]
[392210840,1761257450019,-151.0,0.00042185,120]
[392210841,1761257450028,-151.0,0.00042185,120]
[392210842,1761257450037,-151.0,0.00042185,120]
[392210843,1761257450046,-151.0,0.00042185,120]
[392210844,1761257450056,-151.0,0.00042185,120]
[392210845,1761257450066,-151.0,0.00042185,120]
[392210846,1761257450076,-151.0,0.00042185,120]
[392210847,1761257450087,-151.0,0.00042185,120]
[392210848,1761257450098,-288.147479,0.00042185,120]
[392210849,1761257450107,-649.0,0.00042192,120]
[392210850,1761257450117,-5000.0,0.00042195,2]
[392210851,1761257450126,-649.0,0.00042247,120]
[392210852,1761257450136,-15196.8347643,0.00042249,3]
[392210853,1761257450145,-5000.0,0.0004225,2]
[392210854,1761257450155,-5000.0,0.00042259,2]
[392210855,1761257450164,-5000.0,0.00042289,2]
[392210856,1761257450173,-1211.86,0.00042299,30]
[392210857,1761257450183,-377.62,0.00042299,30]
[392210858,1761257450192,-176.3,0.00042299,30]
[392210859,1761257450201,-150.0,0.00042299,30]
[392210860,1761257450211,-414.24,0.00042299,30]
[392210861,1761257450220,-150.0,0.00042299,30]
[392210862,1761257450229,-547.46,0.00042299,30]
[392210863,1761257450239,-176.3,0.00042299,30]
[392210864,1761257450248,-168.47,0.00042299,30]
[392210865,1761257450257,-150.0,0.00042299,30]
[392210866,1761257450267,-150.0,0.00042299,30]
[392210867,1761257450276,-414.24,0.00042299,30]
[392210868,1761257450285,-547.46,0.00042299,30]
[392210869,1761257450294,-176.3,0.00042299,30]
[392210870,1761257450302,-150.0,0.00042299,30]
[392210871,1761257450311,-414.24,0.00042299,30]
[392210872,1761257450319,-168.47,0.00042299,30]
[392210873,1761257450328,-150.0,0.00042299,30]
[392210874,1761257450337,-168.47,0.00042299,30]
[392210875,1761257450346,-176.3,0.00042299,30]
[392210876,1761257450354,-547.46,0.00042299,30]
[392210877,1761257450363,-414.24,0.00042299,30]
[392210878,1761257450372,-150.0,0.00042299,30]
[392210879,1761257450382,-176.3,0.00042299,30]
[392210880,1761257450391,-336.94,0.00042299,30]
[392210881,1761257450400,-1094.92,0.00042299,30]
[392210882,1761257450409,-413.94,0.00042299,30]
[392210883,1761257450419,-150.0,0.00042299,30]
[392210884,1761257450428,-168.47,0.00042299,30]
[392210885,1761257450437,-176.3,0.00042299,30]
[392210886,1761257450446,-357.49,0.00042299,30]
[392210887,1761257450455,-168.47,0.00042299,30]
[392210888,1761257450465,-168.47,0.00042299,30]
[392210889,1761257450474,-168.47,0.00042299,30]
[392210890,1761257450484,-168.47,0.00042299,30]
[392210891,1761257450493,-649.0,0.00042301,120]
[392210892,1761257450502,-651.73757412,0.00042356,120]
[392210893,1761257450513,-1000.0,0.000424,7]
[392210894,1761257450524,-720.96274135,0.00042423,120]
[392210895,1761257450534,-200.0,0.00042438,2]
[392210896,1761257450543,-2420.96452926,0.0004245,15]
[392210897,1761257450552,-5000.0,0.00042486,2]
[392210898,1761257450562,-172.0,0.000425,120]
[392210899,1761257450572,-1127.0,0.000425,7]
[392210900,1761257450582,-311.04,0.00042534,2]
[392210901,1761257450592,-677.49,0.00042566,2]
[392210902,1761257450601,-24396.87,0.00042573,2]
[392210903,1761257450611,-5000.0,0.00042586,2]
[392210904,1761257450620,-5000.0,0.00042596,2]
[392210905,1761257450630,-3865.41,0.00042602,2]
[392210906,1761257450639,-2500.0,0.00042629,2]
[392210907,1761257450648,-2530.23,0.00042635,2]
[392210908,1761257450657,-200.0,0.00042638,2]
[392210909,1761257450666,-150.0,0.00042638,2]
[392210910,1761257450677,-208.0,0.00042638,2]
[392210911,1761257450686,-212.72,0.00042638,2]
[392210912,1761257450696,-185.739,0.00042638,2]
[392210913,1761257450705,-250.0,0.00042638,2]
[392210914,1761257450714,-766.05454374,0.00042674,28]
[392210915,1761257450724,-1792.53,0.000427,14]
[392210916,1761257450734,-5138.04266681,0.00042734,120]
[392210917,1761257450743,-2303.1,0.00042749,2]
[392210918,1761257450752,-151.0,0.00042783,120]
[392210919,1761257450761,-151.0,0.00042783,120]
[392210920,1761257450770,-151.0,0.00042793,120]
[392210921,1761257450779,-298.763832,0.00042793,120]
[392210922,1761257450788,-25000.0,0.00042803,2]
[392210923,1761257450797,-223.51177975,0.00042803,120]
[392210924,1761257450807,-151.0,0.00042803,120]
[392210925,1761257450815,-151.0,0.00042803,120]
[392210926,1761257450825,-241.77134,0.00042803,120]
[392210927,1761257450834,-317.06,0.00042846,30]
[392210928,1761257450843,-720.96274135,0.0004286,120]
[392210929,1761257450852,-1091.0,0.00042893,30]
[392210930,1761257450861,-5000.0,0.00042909,2]
[392210931,1761257450869,-167.0,0.00042913,14]
[392210932,1761257450878,-1318.36124447,0.00042913,14]
[392210933,1761257450887,-152.0,0.00042913,14]
[392210934,1761257450897,-380.75055864,0.00042913,14]
[392210935,1761257450906,-167.26198799,0.00042913,14]
[392210936,1761257450915,-16278.87244647,0.00042916,15]
[392210937,1761257450924,-151.128,0.00042975,2]
[392210938,1761257450933,-150.0,0.00042975,2]
[392210939,1761257450942,-208.824,0.00042975,2]
[392210940,1761257450954,-209.236,0.00042975,2]
[392210941,1761257450963,-250.0,0.00042975,2]
[392210942,1761257450975,-217.685,0.00042975,2]
[392210943,1761257450985,-818.0,0.00042975,2]
[392210944,1761257450994,-3412.0,0.00042975,2]
[392210945,1761257451004,-151.0,0.00042975,120]
[392210946,1761257451014,-151.0,0.00042975,120]
[392210947,1761257451024,-151.0,0.00042975,120]
[392210948,1761257451033,-151.0,0.00042975,120]
[392210949,1761257451042,-151.0,0.00042975,120]
[392210950,1761257451052,-151.0,0.00042975,120]
[392210951,1761257451061,-151.0,0.00042975,120]
[392210952,1761257451070,-151.0,0.00042975,120]
[392210953,1761257451079,-151.0,0.00042975,120]
[392210954,1761257451089,-151.0,0.00042975,120]
[392210955,1761257451098,-151.0,0.00042975,120]
[392210956,1761257451107,-201.932413,0.00042975,120]
[392210957,1761257451119,-200.48304,0.00042975,120]
[392210958,1761257451129,-200.48304,0.00042975,120]
[392210959,1761257451138,-200.48304,0.00042975,120]
[392210960,1761257451148,-200.48304,0.00042975,120]
[392210961,1761257451159,-151.0,0.00042975,120]
[392210962,1761257451169,-221.988938,0.00042975,120]
[392210963,1761257451178,-221.988938,0.00042975,120]
[392210964,1761257451187,-221.988938,0.00042975,120]
[392210965,1761257451199,-221.988938,0.00042975,120]
[392210966,1761257451208,-228.88464736,0.00042999,120]
[392210967,1761257451218,-15000.0,0.00043,120]
[392210968,1761257451227,-151.0,0.00043,120]
[392210969,1761257451236,-151.0,0.00043,120]
[392210970,1761257451245,-10000.0,0.00043,120]
[392210971,1761257451255,-563.08,0.00043,120]
[392210972,1761257451264,-476.23156132,0.00043,7]
[392210973,1761257451273,-151.0,0.00043,120]
[392210974,1761257451282,-547.371462,0.00043,120]
[392210975,1761257451291,-547.371462,0.00043,120]
[392210976,1761257451300,-237.337684,0.00043,120]
[392210977,1761257451309,-547.371462,0.00043,120]
[392210978,1761257451319,-547.371462,0.00043,120]
[392210979,1761257451327,-151.0,0.00043,120]
[392210980,1761257451337,-151.0,0.00043,120]
[392210981,1761257451346,-151.0,0.00043,120]
[392210982,1761257451355,-151.0,0.00043,120]
[392210983,1761257451364,-2420.96452926,0.00043093,15]
[392210984,1761257451373,-759.611084,0.00043093,120]
[392210985,1761257451382,-759.611084,0.00043093,120]
[392210986,1761257451391,-759.611084,0.00043093,120]
[392210987,1761257451401,-759.611084,0.00043093,120]
[392210988,1761257451410,-995.21379,0.00043093,30]
[392210989,1761257451419,-995.21379,0.00043093,30]
[392210990,1761257451428,-995.21379,0.00043093,30]
[392210991,1761257451438,-995.21379,0.00043093,30]
[392210992,1761257451447,-151.0,0.00043093,120]
[392210993,1761257451456,-151.0,0.00043093,120]
[392210994,1761257451465,-151.0,0.00043093,120]
[392210995,1761257451474,-151.0,0.00043093,120]
[392210996,1761257451484,-151.0,0.00043093,120]
[392210997,1761257451494,-1231.0,0.000431,7]
[392210998,1761257451503,-150.0,0.00043101,30]
[392210999,1761257451513,-452.67,0.00043101,30]
[392211000,1761257451526,-315.72,0.00043101,30]
[392211001,1761257451536,-816.46,0.00043101,30]
[392211002,1761257451546,-336.54,0.0004312,30]
[392211003,1761257451555,-150.0,0.0004312,30]
[392211004,1761257451564,-150.0,0.0004312,30]
[392211005,1761257451574,-150.0,0.0004312,30]
[392211006,1761257451583,-150.0,0.0004312,30]
[392211007,1761257451593,-150.0,0.0004312,30]
[392211008,1761257451602,-150.0,0.0004312,30]
[392211009,1761257451611,-150.0,0.0004312,30]
[392211010,1761257451621,-150.0,0.00043123,30]
[392211011,1761257451630,-155555.0,0.00043131,60]
[392211012,1761257451639,-151.0,0.00043131,120]
[392211013,1761257451648,-152.680624,0.00043131,120]
[392211014,1761257451658,-151.0,0.00043131,120]
[392211015,1761257451667,-151.0,0.00043131,120]
[392211016,1761257451677,-151.0,0.00043131,120]
[392211017,1761257451686,-151.0,0.00043131,120]
[392211018,1761257451696,-151.0,0.00043131,120]
[392211019,1761257451706,-151.0,0.00043131,120]
[392211020,1761257451716,-151.0,0.00043131,120]
[392211021,1761257451726,-174.85,0.00043134,30]
[392211022,1761257451735,-386.87667747,0.00043255,2]
[392211023,1761257451743,-332.60791905,0.00043255,2]
[392211024,1761257451752,-4873.59,0.00043266,15]
[392211025,1761257451761,-299.83,0.00043266,15]
[392211026,1761257451772,-2282.96293095,0.0004327,120]
[392211027,1761257451781,-200.0,0.00043286,9]
[392211028,1761257451790,-200.0,0.00043287,9]
[392211029,1761257451799,-720.96274135,0.00043298,120]
[392211030,1761257451809,-1766.14,0.000433,15]
[392211031,1761257451819,-507.36756277,0.00043356,60]
[392211032,1761257451829,-500.0,0.00043356,60]
[392211033,1761257451838,-500.0,0.00043356,60]
[392211034,1761257451847,-1000.0,0.000434,7]
[392211035,1761257451856,-525.46020194,0.00043561,60]
[392211036,1761257451865,-151.0,0.00043562,60]
[392211037,1761257451875,-151.0,0.00043562,60]
[392211038,1761257451884,-151.0,0.00043562,60]
[392211039,1761257451895,-10000.0,0.00043567,120]
[392211040,1761257451905,-231.4,0.0004368,120]
[392211041,1761257451914,-1001.7878,0.00043699,2]
[392211042,1761257451926,-2900.0,0.000437,15]
[392211043,1761257451936,-151.0,0.00043725,120]
[392211044,1761257451945,-206.463717,0.00043725,120]
[392211045,1761257451955,-155.555443,0.00043725,120]
[392211046,1761257451966,-151.0,0.00043725,120]
[392211047,1761257451976,-151.0,0.00043725,120]
[392211048,1761257451986,-500.0,0.00043735,30]
[392211049,1761257451996,-500.0,0.00043735,30]
[392211050,1761257452007,-500.0,0.00043735,30]
[392211051,1761257452016,-500.0,0.00043735,30]
[392211052,1761257452026,-500.0,0.00043735,30]
[392211053,1761257452036,-500.0,0.00043735,30]
[392211054,1761257452046,-500.0,0.00043735,30]
[392211055,1761257452056,-500.0,0.00043735,30]
[392211056,1761257452066,-250.94988122,0.00043735,30]
[392211057,1761257452076,-579.9375424,0.00043735,12]
[392211058,1761257452086,-151.0,0.00043735,120]
[392211059,1761257452097,-151.0,0.00043735,120]
[392211060,1761257452107,-151.0,0.00043735,120]
[392211061,1761257452116,-151.0,0.00043735,120]
[392211062,1761257452126,-2392.30033924,0.00043735,120]
[392211063,1761257452135,-16278.87244647,0.00043735,15]
[392211064,1761257452144,-2420.96452926,0.00043735,15]
[392211065,1761257452153,-766.05454374,0.00043735,28]
[392211066,1761257452167,-720.96,0.00043735,120]
[392211067,1761257452179,-197.79,0.00043735,120]
[392211068,1761257452188,-1000.0,0.000438,30]
[392211069,1761257452197,-1000.0,0.000438,30]
[392211070,1761257452206,-1792.53,0.000438,14]
[392211071,1761257452216,-3600.0,0.000438,15]
[392211072,1761257452224,-2856.0,0.00043808,120]
[392211073,1761257452234,-151.0,0.00043825,120]
[392211074,1761257452245,-300.0,0.00043834,30]
[392211075,1761257452254,-1000.0,0.00043834,120]
[392211076,1761257452264,-174.14259,0.00043835,120]
[392211077,1761257452273,-161.302127,0.00043835,120]
[392211078,1761257452283,-406.24349975,0.00043835,2]
[392211079,1761257452292,-500.0,0.00043835,120]
[392211080,1761257452301,-500.0,0.00043835,120]
[392211081,1761257452311,-500.0,0.00043835,120]
[392211082,1761257452320,-500.0,0.00043835,120]
[392211083,1761257452330,-500.0,0.00043835,120]
[392211084,1761257452339,-500.0,0.00043835,120]
[392211085,1761257452348,-500.0,0.00043835,120]